Cogmind - Beta 13 @@@ ROGUE MODE // 2024.03.06 @ 22:28:38 Player: rCartos Result: Destroyed by S-10 Pest with Light Assault Rifle Performance ------------- Evolutions (1) 500 Regions Visited (2) 400 Robots Destroyed (12) 60 Value Destroyed (360) 360 Prototype IDs (4) 80 Alien Tech Used (0) 0 Bonus (0) 0 TOTAL SCORE: 1400 Bonus ------- None Cogmind --------- Core Integrity 0/400 Matter 272/300 Energy 263/265 System Corruption 0% Temperature Cool (1) Movement Treading (160) Location -9/Materials Parts ------- > --- POWER (1) -------- Improved Ion Engine > --- PROPULSION (3) --- Light Treads > --- UTILITY (3) ------ Signal Interpreter Terrain Scanner Core Shielding > --- WEAPON (2) ------- Improved Medium Laser Improved Assault Rifle > --- INVENTORY (5) ---- Light Assault Rifle Peak State ------------ > --- POWER ------------ Improved Ion Engine > --- PROPULSION ------- Light Treads > --- UTILITY ---------- Signal Interpreter Terrain Scanner Core Shielding > --- WEAPON ----------- Improved Medium Laser Improved Assault Rifle > --- INVENTORY -------- Light Assault Rifle [Rating: 12] Favorites ----------- Power Ion Engine Engine Ion Engine Propulsion Light Treads Treads Light Treads Utility Signal Interpreter Device Terrain Scanner Processor Signal Interpreter Protection Core Shielding Weapon Light Assault Rifle Energy Gun Small Laser Ballistic Gun Light Assault Rifle Build | -11 -10 -9 ------- Run | Yrd Mat Mat Slots Evolved 2 | . . 2 Power . | . . . Propulsion 1 | . . 1 Utility 1 | . . 1 Weapon . | . . . Parts Attached 17 | 6 1 10 Power 2 | 1 . 1 Engine 2 | 1 . 1 Core . | . . . Reactor . | . . . Propulsion 4 | 2 . 2 Treads 4 | 2 . 2 Leg . | . . . Wheel . | . . . Hover . | . . . Flight . | . . . Utility 3 | . 1 2 Device 1 | . . 1 Storage . | . . . Processor 1 | . 1 . Hackware . | . . . Protection 1 | . . 1 Artifact . | . . . Weapon 8 | 3 . 5 Energy Gun 2 | 1 . 1 Energy Cannon . | . . . Ballistic Gun 6 | 2 . 4 Ballistic Cannon . | . . . Launcher . | . . . Special Weapon . | . . . Impact Weapon . | . . . Slashing Weapon . | . . . Piercing Weapon . | . . . Special Melee Weapon . | . . . Unidentified Prototypes 2 | . . 2 Parts Lost 5 | . . 5 Power 1 | . . 1 Propulsion 2 | . . 2 Utility 1 | . . 1 Weapon 1 | . . 1 Highest Loss Streak 2 | . . 2 To Critical Strikes . | . . . Average Slot Usage (%) 84 | . 88 79 Engine 11 | . 14 8 Treads 22 | . 28 16 Device 5 | . . 11 Processor 11 | . 12 11 Protection 7 | . 5 9 Energy Gun 10 | . 14 6 Ballistic Gun 14 | . 14 15 Naked Turns . | . . . Heaviest Build 15 | 7 8 15 Greatest Support 40 | 40 40 40 Greatest Overweight (x) 1 | 1 . 1 Average Overweight (x) . | . . . Largest Inventory Capacity 5 | 5 5 5 Average Capacity 5 | 5 5 5 Most Carried 5 | 3 2 5 Average Carried . | . . . Final Capacity 5 | 5 5 5 Final Carried 2 | . 2 1 Class Distribution -------------------- 93% | Mutant 6% | Scavenger-Mutant Dominant Class ---------------- Mutant | -10/Materials Mutant | -9/Materials Resources | -11 -10 -9 ----------- Run | Yrd Mat Mat Matter Collected 387 | 158 89 140 Remotely . | . . . Salvage Created 446 | . 131 315 Parts 19 | . 6 13 Haulers Intercepted . | . . . Recyclers Shooed . | . . . Parts Field Recycled . | . . . Retrieved Matter . | . . . Parts Self-Destructed . | . . . Prevented . | . . . Kills | -11 -10 -9 ------- Run | Yrd Mat Mat Combat Hostiles Destroyed 12 | . 5 7 Guns 12 | . 5 7 Classes Destroyed 4 | . 2 2 Swarmer 3 | . 3 . Grunt 7 | . 2 5 Duelist 1 | . . 1 Sentry 1 | . . 1 Best Kill Streak 2 | . 2 2 Combat Bots Only 2 | . 2 2 Max Kills in Single Turn 1 | . 1 1 Gunslinging . | . . . Exploded . | . . . Melee . | . . . Uniques/NPCs Destroyed . | . . . Combat | -11 -10 -9 -------- Run | Yrd Mat Mat Hostile Shots Fired 131 | . 44 87 Missed 39 | . 13 26 Damage Taken 1170 | . 261 909 Core 446 | . 42 404 Absorbed by Shields . | . . . Redirected to Shielding 22 | . . 22 Core Remaining (%) 91 | 100 83 . Volleys Fired 65 | . 23 42 Largest 2 | . 2 2 Hottest 79 | . 60 79 Shots Fired 130 | . 46 84 Gun 130 | . 46 84 Cannon . | . . . Launcher . | . . . Special . | . . . Kinetic 69 | . 23 46 Thermal 61 | . 23 38 Explosive . | . . . Electromagnetic . | . . . Robot Hit Streak 12 | . 5 12 Robot Miss Streak 8 | . 8 4 Penetration Max . | . . . Secondary Targets 5 | . 1 4 Max Gunslinging Chain 1 | . 1 1 Shots Hit Robots 84 | . 25 59 Core Hits 26 | . 10 16 Critical Kills . | . . . Critical Parts Destroyed . | . . . Critical Strikes 2 | . . 2 Burn 2 | . . 2 Melee Attacks . | . . . Impact . | . . . Slashing . | . . . Piercing . | . . . Sneak Attacks . | . . . Combat Hostiles . | . . . Follow-up Attacks . | . . . Damage Inflicted 887 | . 256 631 Guns 885 | . 254 631 Cannons . | . . . Explosions . | . . . Melee . | . . . Ramming 2 | . 2 . Kinetic 399 | . 125 274 Thermal 486 | . 129 357 Explosive . | . . . Electromagnetic . | . . . Impact . | . . . Slashing . | . . . Piercing . | . . . Highest Corruption . | . . . Average Corruption . | . . . Corruption Purged . | . . . Corruption Blocked . | . . . Overload Shots . | . . . Overflow Damage . | . . . Projectiles . | . . . Explosions . | . . . Melee . | . . . Knockbacks . | . . . Impact . | . . . Kinetic . | . . . Secondary . | . . . Self-Inflicted Damage . | . . . Shots . | . . . Rammed 1 | . 1 . Targets Rammed 1 | . 1 . Kicked . | . . . Crushed . | . . . Highest Temperature 178 | . 60 178 Average Temperature 43 | . 27 52 Received Heat Transfer 342 | . 42 300 Siege Activations . | . . . Robots Corrupted . | . . . Combat Hostiles . | . . . Parts Fried . | . . . Impact Corruptions . | . . . Robots Melted . | . . . Combat Hostiles . | . . . Parts Melted 1 | . . 1 Heat Transferred 1242 | . 300 942 Parts Sabotaged . | . . . Parts Stolen . | . . . Parts Stripped . | . . . Power Chain Reactions . | . . . Alert | -11 -10 -9 ------- Run | Yrd Mat Mat Peak Influence 182 | . 145 182 Initial . | . . . Average 61 | . 65 71 Maximum Alert Level . | . . . Low Security (%) 100 | 100 100 100 Level 1 . | . . . Level 2 . | . . . Level 3 . | . . . Level 4 . | . . . Level 5 . | . . . High Security . | . . . Max Security . | . . . Squads Dispatched 4 | . 2 2 Investigation 2 | . 1 1 Extermination . | . . . Reinforcement 2 | . 1 1 Assault . | . . . Garrison . | . . . Intercept . | . . . Searches Triggered . | . . . Construction Impeded . | . . . Haulers Reinforced . | . . . Active Scanning Responses . | . . . Cargo Convoy Interrupts . | . . . Stealth | -11 -10 -9 --------- Run | Yrd Mat Mat Distress Signals . | . . . Communications Jammed . | . . . Distress Signals . | . . . Times Spotted 24 | . 11 13 Peak Tracking Total 5 | . 3 5 Tactical Retreats 1 | . . 1 Traps | -11 -10 -9 ------- Run | Yrd Mat Mat Traps Triggered 1 | . 1 . Indirectly . | . . . Trap Hack Attempts . | . . . Triggered . | . . . Disarmed . | . . . Reprogrammed . | . . . Reused . | . . . Traps Extracted . | . . . Installed . | . . . Triggered . | . . . Machines | -11 -10 -9 ---------- Run | Yrd Mat Mat Machines Disabled . | . . . Max in Single Turn . | . . . Machines Repaired . | . . . Machines Dismantled . | . . . Machines Sabotaged . | . . . Overloaded Fab Kills . | . . . Hacking | -11 -10 -9 --------- Run | Yrd Mat Mat Machines Accessed 6 | . 4 2 Terminals 4 | . 3 1 Fabricators . | . . . Repair Stations 1 | . 1 . Recycling Units 1 | . . 1 Scanalyzers . | . . . Garrison Access . | . . . Total Hacks 21 | . 11 10 Successful 9 | . 3 6 Failed 12 | . 8 4 Catastrophic . | . . . Database Lockouts . | . . . Manual . | . . . Terminals 12 | . 8 4 Fabricators . | . . . Repair Stations 3 | . 3 . Recycling Units 6 | . . 6 Scanalyzers . | . . . Garrison Access . | . . . Terminal Hacks 3 | . 2 1 Prototype ID Bank 1 | . . 1 Locate Traps 1 | . 1 . Zone Layout 1 | . 1 . Fabricator Hacks . | . . . Repair Station Hacks 1 | . 1 . Refit 1 | . 1 . Recycling Unit Hacks 5 | . . 5 Recycle Component 2 | . . 2 Process 2 | . . 2 Retrieve Matter 1 | . . 1 Scanalyzer . | . . . Garrison Access Hacks . | . . . Unauthorized Hacks . | . . . Terminals . | . . . Fabricators . | . . . Repair Stations . | . . . Recycling Units . | . . . Scanalyzers . | . . . Garrison Access . | . . . Data Cores Recovered . | . . . Used . | . . . Hacking Detections 5 | . 3 2 Full Trace Events 5 | . 3 2 Feedback Events . | . . . Feedback Blocked . | . . . Robot Schematics Acquired . | . . . Robots Built . | . . . Authchips . | . . . Time . | . . . Total Robot Build Rating . | . . . Part Schematics Acquired . | . . . Parts Built . | . . . Authchips . | . . . Time . | . . . Total Part Build Rating . | . . . Parts Repaired . | . . . Time . | . . . Parts Recycled 2 | . . 2 Recycled Matter 13 | . . 13 Retrieved Matter 13 | . . 13 Retrieved Components . | . . . Parts Scanalyzed . | . . . Part Schematics Acquired . | . . . Parts Damaged . | . . . Bothacking | -11 -10 -9 ------------ Run | Yrd Mat Mat Used RIF Installer . | . . . Robots Hacked . | . . . Non-combat . | . . . Combat . | . . . Robot Hacks Applied . | . . . Relay Couplers Released . | . . . Fabnet Peak Effective % . | . . . Robots Rewired . | . . . Allies Hacked . | . . . Hacks Repelled . | . . . Allies | -11 -10 -9 -------- Run | Yrd Mat Mat Total Allies . | . . . Largest Group . | . . . Highest-Rated Group . | . . . Highest-Rated Ally . | . . . Total Orders . | . . . Ally Attacks . | . . . Total Damage . | . . . Kills . | . . . Allies Corrupted . | . . . Allies Melted . | . . . Intel | -11 -10 -9 ------- Run | Yrd Mat Mat Robot Analysis Total . | . . . Derelict Logs Recovered . | . . . Drone Launches . | . . . Drone Recoveries . | . . . Exploration | -11 -10 -9 ------------- Run | Yrd Mat Mat Turns Passed 894 | 88 426 380 Spaces Moved 428 | 57 222 149 Core 36 | 20 . 16 Treads 392 | 37 222 133 Legs . | . . . Wheels . | . . . Hover . | . . . Flight . | . . . Fastest Speed 50 | 50 160 50 Average Speed 154 | 132 160 153 Slowest Speed 160 | 160 160 160 Overloaded Moves . | . . . Propulsion Burnouts . | . . . Robots Hopped . | . . . Cave-ins Triggered . | . . . Exploration Rate (%) 18 | 4 33 19 Regions Visited 2 Branch Regions . Pre-discovered Areas . | . . . Known Exits Taken 1 | . 1 . Unknown Exits Taken 1 | 1 . . Scrap Searched . | . . . Spaces Dug . | . . . Terrain Destroyed . | . . . Melee . | . . . Projectile . | . . . AOE . | . . . Terrain Rammed . | . . . Walls Destroyed . | . . . Machines Disabled . | . . . Actions | -11 -10 -9 --------- Run | Yrd Mat Mat Total 546 | 70 251 225 Wait 13 | . 2 11 Move 426 | 56 221 149 Hop . | . . . Pick Up 19 | 6 3 10 Fast Attach . | . . . Attach 13 | 6 1 6 Detach 1 | 1 . . Swap 4 | . . 4 Drop 4 | 1 . 3 Fire 65 | . 23 42 Melee . | . . . Ram . | . . . Kick . | . . . Crush 1 | . 1 . Escape Stasis . | . . . Rewire . | . . . Trap . | . . . Miscellaneous . | . . . Route ------- -11/Scrapyard -10/Materials -9/Materials History --------- Turn | Location | Event 13 | -11/Scrapyard | Discovered new exit (range 16) 89 | -11/Scrapyard | Entered Materials 313 | -10/Materials | Build established: Mutant 494 | -10/Materials | Discovered new exit (range 7) 512 | -10/Materials | Identified exit to Materials 515 | -10/Materials | Entered another Materials area 515 | -9/Materials | Evolved 2 slots: Propulsion x1, Utility x1 576 | -9/Materials | Core integrity fell below 50% 616 | -9/Materials | Core integrity fell below 20% 895 | -9/Materials | Destroyed by S-10 Pest with Light Assault Rifle Last Messages --------------- K-01 Serf collects debris. Acquired 16 matter. K-01 Serf collects debris. Acquired Prototype Ballistic Gun. Identified Imp. Assault Rifle. K-01 Serf collects debris. Connecting with Terminal... K-01 Serf collects debris. K-01 Serf destroyed. K-01 Serf collects debris. R-06 Scavenger collects Lgt. Ion Engine. U-05 Engineer builds a Door. K-01 Serf collects debris. G-34 Mercenary destroyed. Switching to secondary target: G-34 Mercenary. K-01 Serf collects debris. R-06 Scavenger collects Sml. Laser. K-01 Serf collects debris. G-34 Mercenary destroyed. K-01 Serf collects debris. Map ----- +----------------------------------------------------+ | ???????????????????????????????????????????????? | | ???????????????????????????????????????????????? | | ???????????????????????????????????????????????? | | ???????????????????????????????????????????????? | | ???????????????????????????????????????????????? | | ???????????????????????????????????????????????? | | ???????????????????????????????????????????????? | | ???????????????????????????????????????????????? | | ???????????????????????????????????????????????? | | ?????????????????????????????? # #????????? | | ?????????????????????????? ?? ????????? | | ????????????????????????? ? ????????? | | ???????????????????????? ? ^ #???????? | | ???????????????????????"" """ #???????? | | ??????????????????????"""" """ #???????? | | ????????????????????? """ """ ##?????#? | | ????????????????????? ????? | | ?????????????????????? ? ????? | | ??????????????????????? ???????? | | ??????????????????????? [ #?????#?? | | ?????????????????######## == #???????# | | ???????????????? # ""%[ s"""" #???????? | | ???????????????# % """ # "T% """" #?####### | | ???????????????# """ # "" k """" ### # | | ???????????????#! """ # ss %% w # | | ???????????????# @/ s T # | | ???????????????# """ # # | | ???????????????# """ ######""T""####### # | | ???????????????# """ #????#"""""#?#?#####+### | | ????????????????= #????########?## """ | | ?????????????????########??????????#???# "Y" | | ???????????????????????????????????????# """ | | ?????????????????#????#????#?????#??#??# """ | | ???????????????????????????????????????# """ | | ?????????????????????????????#??????#??# | | ???????????????????????????????????????# | | ?????????????????????????#??????#??#?#?# | | ?????????????????????????????????##????######### | | | | | | | | | | | | | | | | | | | | | | | | | +----------------------------------------------------+ Best States ------------- Heat Dissipation 28 Energy Generation 12 Energy Capacity 265 Matter Stores 300 Matter Capacity 300 Sight Range 16 Terrain Scan Range 14 Terrain Scan Density 10 Armor Coverage 80 Core Shielding 20 Evasion (%) 40 Recoil Reduction 2 Item Schematics ----------------- None Robot Schematics ------------------ None Fabricated ------------ Nothing Alien Tech Used ----------------- None Achievements -------------- None Challenges ------------ None Game ------ Seed SubdwellerSpacefoldMembrane Manual? 0 Play Time 00:10:59 Cumulative 3.4 hours Start 2024.03.06 @ 22:18:09 End 2024.03.06 @ 22:28:38 Sessions 1 Manual Loads 0 Difficulty Rogue Special Mode None Game No. 8 Rogue 8 Adventurer 0 Explorer 0 Win Type - Total 0 Types 0/0/0/0/0/0/0/0/0 Lore% 1 Gallery% 7 Achievement% 6 Wizard Run 0 Options --------- Layout 1 ASCII 0 Keyboard 0 Movement Arrows Keybinds 0 Fullscreen 1 Font 16/Terminus Map View 25x20 Zoom Use 99% Tactical HUD 0 Map Filters NONE Filters NONE Steam 1 RUN: 84dac7c6-e3fa-4eda-aa34-bb61e86c7d7d